bitfinex-derivatives/quotes_SOLF0:USTF0_20241222
["timestamp","ask_amount","ask_price","bid_price","bid_amount"]
[1734869174853,2.5,186.59,186.52,4.2833]
[1734869175345,2.6818,186.57,186.52,4.2833]
[1734869175546,2.5,186.63,186.52,4.101]
[1734869175852,2.6808,186.63,186.52,4.101]
[1734869176052,2.6808,186.63,186.58,2.6815]
[1734869176253,6.52,186.68,186.52,4.101]
[1734869176452,2.5,186.67,186.62,2.6809]
[1734869176752,2.5,186.67,186.52,1.601]
[1734869176753,2.5,186.67,186.57,2.5]
[1734869176953,2.5,186.67,186.58,1.6705]
[1734869177149,2.6805,186.65,186.6,2.6811]
[1734869177652,2.6805,186.65,186.6,4.3629]
[1734869178756,2.681,186.62,186.6,1.6818]
[1734869178951,2.5,186.63,186.6,1.6818]
[1734869179151,2.5,186.63,186.52,105.71189301]
[1734869179449,2.5,186.63,186.53,5.0442]
[1734869180455,2.6813,186.6,186.56,2.6818]
[1734869180654,2.5,186.63,186.53,5.0442]
[1734869181050,2.6814,186.59,186.54,2.682]
[1734869181251,2.5,186.63,186.53,5.0442]
[1734869181553,2.6812,186.6,186.56,2.6817]
[1734869183454,2.5,186.63,186.53,1.6707]
[1734869183656,2.6815,186.59,186.54,2.682]
[1734869183856,5.1815,186.59,186.54,2.682]
[1734869184856,6.53,186.58,186.54,2.682]
[1734869185358,2.6817,186.57,186.53,1.6707]
[1734869186557,2.6817,186.57,186.53,4.3528]
[1734869187457,6.53,186.58,186.53,4.3528]
[1734869188058,2.6817,186.57,186.53,4.3528]
[1734869189659,6.53,186.58,186.53,1.6707]
[1734869189864,6.53,186.58,186.55,2.6819]
[1734869190254,6.53,186.58,186.53,1.6707]
[1734869190461,6.53,186.58,186.56,2.6818]
[1734869192662,6.53,186.58,186.57,14.96933589]
[1734869194568,6.53,186.58,186.57,37.50329395]
[1734869195463,6.53,186.58,186.57,184.40911948]
[1734869195770,6.53,186.58,186.57,214.53405844]
[1734869197270,6.53,186.58,186.57,252.04889614]
[1734869198071,9.2115,186.58,186.57,252.04889614]
[1734869199072,9.2115,186.58,186.57,37.50329395]
[1734869200464,9.2115,186.58,186.57,96.85967985]
[1734869200670,11.8115,186.58,186.57,96.85967985]
[1734869201471,11.8115,186.58,186.57,91.65807985]
[1734869202268,11.8115,186.58,186.57,86.69367985]
[1734869202464,12.75782163,186.58,186.57,86.69367985]
[1734869203168,2.6825,186.51,186.5,59.3563859]
[1734869203376,5.2825,186.51,186.5,59.3563859]
[1734869204377,2.6,186.51,186.46,59.3563859]
[1734869204586,2.6831,186.48,186.46,59.3563859]
[1734869204873,2.6,186.51,186.46,59.3563859]
[1734869205266,2.6831,186.47,186.46,59.3563859]
[1734869205672,2.6,186.51,186.44,59.3563859]
[1734869205869,2.6834,186.45,186.44,59.3563859]
[1734869206070,5.2834,186.45,186.44,59.3563859]
[1734869206976,2.6,186.45,186.39,59.3563859]
[1734869207182,2.684,186.41,186.39,59.3563859]
[1734869208075,2.6831,186.47,186.39,59.3563859]
[1734869208272,2.6,186.47,186.38,1.5806]
[1734869209484,2.6832,186.46,186.39,2.6841]
[1734869211678,2.6,186.47,186.38,1.5806]
[1734869212089,2.684,186.41,186.38,1.5806]
[1734869212485,2.6,186.42,186.38,1.5806]
[1734869213281,2.6841,186.4,186.38,1.5806]
[1734869213581,2.6,186.42,186.36,1.6949]
[1734869213783,2.6845,186.38,186.32,62.85860298]
[1734869213975,2.6845,186.38,186.32,64.52840298]
[1734869214173,2.6,186.42,186.32,64.52840298]
[1734869214477,2.6,186.42,186.34,2.6849]
[1734869214478,2.6841,186.4,186.34,2.6849]
[1734869215184,2.6843,186.39,186.34,2.6849]
[1734869215580,2.6,186.42,186.32,5.17201708]
[1734869215881,2.6844,186.38,186.33,2.6851]
[1734869216082,2.56,186.38,186.32,5.17201708]
[1734869218083,2.56,186.38,186.32,7.85721708]
[1734869218291,2.56,186.38,186.32,5.17201708]
[1734869218582,2.6847,186.36,186.32,5.17201708]
[1734869218775,2.56,186.38,186.32,5.17201708]
[1734869220285,2.6849,186.35,186.32,5.17201708]
[1734869220481,2.56,186.34,186.27,108.28859216]
[1734869220785,2.56,186.33,186.27,109.88969216]
[1734869221279,2.6854,186.31,186.27,109.88969216]
[1734869221786,25.0,186.3,186.28,2.6858]
[1734869221986,25.0,186.3,186.27,109.88969216]
[1734869222887,25.0,186.3,186.25,3.3698]
[1734869223185,2.6858,186.28,186.25,3.3698]
[1734869224084,2.56,186.29,186.23,1.669]
[1734869224786,2.56,186.29,186.2,3.5831443]
[1734869225087,2.56,186.29,186.2,1.644]
[1734869225283,2.6866,186.23,186.2,1.644]
[1734869225488,2.56,186.22,186.18,1.7036]
[1734869225688,2.56,186.25,186.18,1.7036]
[1734869226284,2.56,186.25,186.18,4.3909]
[1734869226484,2.56,186.25,186.18,1.7036]
[1734869226885,2.6864,186.24,186.18,1.7036]
[1734869227090,2.56,186.25,186.18,1.7036]
[1734869227889,2.6872,186.19,186.16,1.644]
[1734869228089,2.56,186.2,186.16,1.644]
[1734869228289,2.56,186.19,186.12,1.5904]
[1734869228486,5.2473,186.18,186.12,4.2785]
[1734869228686,2.56,186.18,186.12,4.2785]
[1734869229089,2.6874,186.17,186.12,1.5904]
[1734869229288,2.56,186.18,186.12,1.5904]
[1734869230493,25.0,186.3,186.12,1.5904]
[1734869230697,3.5082156,186.29,186.12,1.5904]
[1734869230889,0.9482156,186.28,186.12,1.5904]
[1734869231492,2.56,186.29,186.13,2.56]
[1734869231788,2.6861,186.26,186.13,2.56]
[1734869232094,2.56,186.25,186.19,2.687]
[1734869232392,2.56,186.25,186.13,2.56]
[1734869232393,2.56,186.26,186.22,2.6867]
[1734869232695,2.56,186.26,186.17,2.56]
[1734869232887,2.56,186.26,186.18,3.3378]
[1734869233390,2.56,186.26,186.19,2.6871]
[1734869233693,2.56,186.26,186.18,3.3378]
[1734869233992,2.56,186.26,186.11,59.3563859]
[1734869233993,0.94816065,186.25,186.11,59.3563859]
[1734869234194,2.56,186.26,186.11,59.3563859]
[1734869234389,2.6868,186.22,186.11,2.6882]
[1734869234594,2.56,186.21,186.1,3.3945]
[1734869234990,5.2468,186.21,186.14,2.6878]
[1734869235191,6.55,186.2,186.14,2.6878]
[1734869235394,6.55,186.2,186.1,3.3945]
[1734869235893,9.237,186.2,186.1,3.3945]
[1734869236095,6.55,186.2,186.1,3.3945]
[1734869236301,2.6872,186.19,186.13,2.688]
[1734869236497,6.55,186.2,186.1,3.3945]
[1734869236891,6.55,186.2,186.13,2.688]
[1734869238493,6.55,186.2,186.1,18.18946082]
[1734869238798,6.55,186.2,186.12,2.688]
[1734869238992,6.55,186.2,186.1,18.18946082]
[1734869239896,6.55,186.2,186.1,3.3945]
[1734869240101,6.55,186.2,186.1,6.0829]
[1734869240601,6.55,186.2,186.12,2.688]
[1734869240794,6.55,186.2,186.1,3.3945]
[1734869241191,6.55,186.2,186.13,2.688]
[1734869241398,25.0,186.15,186.13,2.56]
[1734869241594,6.55,186.2,186.13,2.56]
[1734869242197,16.1,186.38,186.14,14.78530059]
[1734869242405,2.6867,186.23,186.14,14.78530059]
[1734869242599,2.56,186.26,186.14,14.78530059]
[1734869242795,2.6868,186.21,186.17,2.6874]
[1734869243000,2.56,186.27,186.14,14.78530059]
[1734869243199,2.56,186.28,186.14,14.78530059]
[1734869243400,2.56,186.27,186.14,14.78530059]
[1734869243598,2.6867,186.23,186.19,2.6871]
[1734869244399,2.56,186.27,186.13,84.15661394]
[1734869244598,2.56,186.27,186.15,59.3563859]
[1734869245303,2.687,186.21,186.16,2.6874]
[1734869245695,1.722,186.33,186.14,14.55723936]
[1734869245896,2.6867,186.22,186.17,2.6873]
[1734869246504,2.76,186.25,186.15,14.55723936]
[1734869246904,2.6866,186.23,186.18,2.6871]
[1734869248100,2.6866,186.23,186.19,2.6871]
[1734869248304,2.76,186.25,186.17,3.2867]
[1734869248497,5.4463,186.25,186.21,2.6868]
[1734869248701,2.6863,186.25,186.21,2.6868]
[1734869249202,2.76,186.28,186.18,95.8459715]
[1734869249606,2.6865,186.24,186.19,2.687]
[1734869249808,2.76,186.28,186.18,95.8459715]
[1734869250013,2.76,186.28,186.19,14.59583424]
[1734869250705,2.6864,186.25,186.19,2.687]
[1734869251607,2.6864,186.25,186.2,14.63511224]
[1734869252002,2.6864,186.24,186.2,14.63511224]
[1734869252201,2.76,186.28,186.2,14.63511224]
[1734869252399,2.6862,186.26,186.2,14.63511224]
[1734869252610,2.76,186.28,186.2,14.63511224]
[1734869252805,2.76,186.28,186.19,59.3563859]
[1734869253310,2.6862,186.26,186.19,59.3563859]
[1734869253505,2.76,186.28,186.19,59.3563859]
[1734869253710,2.76,186.28,186.18,59.3563859]
[1734869253911,2.6871,186.19,186.18,59.3563859]
[1734869254311,2.76,186.21,186.17,59.3563859]
[1734869254611,2.6873,186.18,186.17,59.3563859]
[1734869255308,2.6876,186.16,186.15,59.3563859]
[1734869255702,5.4476,186.16,186.15,59.3563859]
[1734869256107,5.4476,186.16,186.15,48.9411859]
[1734869256305,5.4476,186.16,186.14,89.01323794]
[1734869256515,2.6878,186.14,186.13,48.9411859]
[1734869257607,2.76,186.16,186.07,89.01323794]
[1734869257815,2.6877,186.15,186.08,3.3116]
[1734869258217,2.6877,186.15,186.08,6.0002]
[1734869258416,2.6877,186.15,186.09,89.01323794]
[1734869259117,2.6877,186.15,186.1,36.31871238]
[1734869259420,2.76,186.16,186.1,36.31871238]
[1734869259718,2.6879,186.14,186.1,36.31871238]
[1734869260119,2.6879,186.14,186.09,89.01323794]
[1734869260120,2.6879,186.14,186.11,36.31871238]
[1734869261120,2.6879,186.14,186.08,95.01343794]
[1734869261718,2.688,186.13,186.08,95.01343794]
[1734869261921,2.688,186.13,186.09,36.33142445]
[1734869262219,2.76,186.16,186.1,2.6884]
[1734869262422,2.76,186.18,186.09,36.33142445]
[1734869262918,2.6877,186.15,186.1,2.6884]
[1734869263120,2.76,186.18,186.1,36.33142445]
[1734869264218,2.76,186.18,186.08,3.3116]
[1734869265119,2.76,186.18,186.09,14.52737945]
[1734869265323,2.6881,186.13,186.09,14.52737945]
[1734869265725,2.6881,186.13,186.08,3.3116]
[1734869266219,2.76,186.18,186.08,3.3116]
[1734869266423,2.6881,186.12,186.08,3.3116]
[1734869267819,2.76,186.18,186.08,6.0003]
[1734869268327,2.6879,186.14,186.08,3.3116]
[1734869268520,2.76,186.16,186.08,3.3116]
[1734869268921,2.76,186.16,186.09,14.51835378]
[1734869269424,2.6877,186.15,186.09,17.20675378]
[1734869269727,2.6877,186.15,186.1,14.51835378]
[1734869270226,2.6881,186.13,186.1,14.51835378]
[1734869270527,2.6881,186.13,186.08,3.3116]
[1734869271825,2.6882,186.12,186.07,2.6888]
[1734869272226,2.76,186.16,186.06,34.34688915]
[1734869272426,2.76,186.16,186.06,5.2990807]
[1734869273129,2.688,186.13,186.08,2.6887]
[1734869273720,2.76,186.16,186.07,36.2938876]
[1734869274028,2.6879,186.14,186.09,2.6884]
[1734869274326,2.76,186.16,186.09,2.6884]
[1734869274626,2.688,186.13,186.09,2.6884]
[1734869274827,2.688,186.13,186.07,21.77633256]
[1734869275029,2.688,186.13,186.08,2.6886]
[1734869275217,2.6881,186.12,186.08,2.6886]
[1734869275421,2.76,186.16,186.08,2.6886]
[1734869276329,2.6881,186.13,186.08,2.6886]
[1734869276628,2.76,186.16,186.08,2.6886]
[1734869276829,2.6882,186.12,186.09,2.6885]
[1734869278222,2.6882,186.12,186.07,2.6887]
[1734869278427,2.6882,186.12,186.06,19.81469088]
[1734869278827,2.6882,186.12,186.08,2.6886]
[1734869280032,2.6883,186.11,186.08,2.6886]
[1734869280232,2.76,186.16,186.07,14.52367591]
[1734869280426,2.76,186.16,186.09,2.6885]
[1734869281224,2.6881,186.13,186.09,2.6885]
[1734869281632,2.6875,186.17,186.09,2.84]
[1734869281932,2.84,186.22,186.1,1.647]
[1734869282335,5.3713,186.3,186.1,1.647]
[1734869282529,3.78803157,186.29,186.1,1.647]
[1734869282731,2.84,186.29,186.1,1.647]
[1734869283030,2.84,186.29,186.1,23.42333256]
[1734869283233,2.6862,186.26,186.21,2.6868]
[1734869283429,2.84,186.29,186.18,2.84]
[1734869283728,0.0916,186.39,186.19,7.6429]
[1734869283935,3.78760606,186.38,186.2,2.84]
[1734869284131,0.94760606,186.37,186.2,2.84]
[1734869284633,2.6854,186.31,186.25,2.6862]
[1734869285025,2.84,186.38,186.2,2.84]
[1734869285227,2.84,186.37,186.2,18.91]
[1734869285625,2.84,186.37,186.21,14.51355041]
[1734869286128,5.5247,186.37,186.21,30.58355041]
[1734869286428,2.6847,186.37,186.21,30.58355041]
[1734869287029,2.6847,186.37,186.27,2.6859]
[1734869287231,1.7147,186.45,186.28,1.5806]
[1734869287429,3.78730982,186.44,186.28,1.5806]
[1734869287626,0.94730982,186.43,186.25,2.84]
[1734869288239,2.6854,186.31,186.25,5.5262]
[1734869288536,2.84,186.34,186.25,2.84]
[1734869288832,2.6857,186.29,186.24,1.6202]
[1734869289427,2.84,186.31,186.24,1.6202]
[1734869289627,2.6856,186.3,186.24,1.6202]
[1734869290136,2.6856,186.3,186.24,4.3066]
[1734869290432,2.84,186.31,186.25,2.6862]
[1734869290631,2.6854,186.32,186.25,2.6862]
[1734869290832,2.84,186.34,186.25,2.6862]
[1734869291233,2.84,186.34,186.26,2.6861]
[1734869291830,2.84,186.34,186.27,2.686]
[1734869292333,2.84,186.36,186.27,2.686]
[1734869293442,2.6851,186.33,186.27,2.686]
[1734869293836,2.84,186.36,186.24,1.6202]
[1734869294036,2.6853,186.32,186.25,2.6861]
[1734869294234,2.84,186.36,186.24,1.6202]
[1734869294735,2.6852,186.33,186.27,2.686]
[1734869296239,2.84,186.36,186.24,1.6202]
[1734869296936,2.6855,186.31,186.25,2.6863]
[1734869297738,2.84,186.36,186.24,1.6202]
[1734869297941,2.6853,186.32,186.27,2.686]
[1734869298339,2.84,186.36,186.24,1.6202]
[1734869299043,2.84,186.36,186.26,2.6861]
[1734869299342,2.84,186.36,186.24,1.6202]
[1734869299540,2.6853,186.32,186.27,2.6859]
[1734869299841,2.6853,186.32,186.28,1.6278]
[1734869300038,2.6853,186.32,186.28,3.2982]
[1734869300340,2.84,186.36,186.28,5.984]
[1734869300640,2.84,186.36,186.28,3.2982]
[1734869300847,2.6852,186.33,186.28,3.2982]
[1734869301442,2.6856,186.3,186.28,3.2982]
[1734869302641,2.6854,186.31,186.28,3.2982]
[1734869303542,2.6856,186.3,186.28,3.2982]
[1734869304142,2.84,186.36,186.28,3.2982]
[1734869304343,2.6857,186.29,186.24,4.3066]
[1734869304538,2.84,186.31,186.24,1.6202]
[1734869304742,2.6861,186.27,186.24,1.6202]
[1734869306439,2.6862,186.26,186.24,1.6202]
[1734869306641,2.84,186.31,186.23,1.7061]
[1734869307237,2.6864,186.25,186.23,1.7061]
[1734869307439,2.84,186.31,186.18,4.2622]
[1734869307643,2.84,186.31,186.18,3.1675]
[1734869307944,2.6864,186.24,186.18,3.1675]
[1734869308947,2.6864,186.24,186.19,2.6871]
[1734869309142,2.84,186.31,186.19,2.6871]
[1734869309348,2.6866,186.23,186.19,2.6871]
[1734869314655,2.84,186.31,186.19,2.6871]
[1734869314850,2.6866,186.23,186.19,2.6871]
[1734869315753,2.6867,186.22,186.19,2.6871]
[1734869316146,2.84,186.31,186.19,2.6871]
[1734869316345,2.6866,186.23,186.19,2.6871]
[1734869316952,2.6866,186.23,186.18,62.75939528]
[1734869317256,2.6866,186.23,186.2,2.6869]
[1734869326262,2.687,186.2,186.18,59.59189528]
[1734869326662,2.8,186.25,186.18,59.59189528]
[1734869326960,2.6873,186.18,186.16,59.59189528]
[1734869327764,2.6873,186.18,186.14,2.6878]
[1734869327765,2.6873,186.18,186.14,62.27969528]
[1734869327959,2.8,186.2,186.14,62.27969528]
[1734869328264,2.8,186.2,186.14,59.59189528]
[1734869328463,4.455,186.24,186.14,59.59189528]
[1734869328759,4.455,186.24,186.16,2.6874]
[1734869329263,4.455,186.24,186.14,81.40707846]
[1734869329973,2.6877,186.15,186.14,81.40707846]
[1734869330565,2.6881,186.13,186.1,81.40707846]
[1734869331255,2.6881,186.13,186.08,1.6588]
[1734869331859,2.6882,186.12,186.08,1.6588]
[1734869332064,2.8,186.16,186.05,84.76057846]
[1734869332259,2.8,186.16,186.05,3.3535]
[1734869332557,2.8,186.16,186.05,6.0425]
[1734869332558,2.6883,186.11,186.05,6.0425]
[1734869332959,2.8,186.16,186.05,3.3535]
[1734869333159,2.6885,186.1,186.05,3.3535]
[1734869337155,2.6885,186.1,186.05,1.716]
[1734869340265,50.88505462,186.23,186.05,1.716]
[1734869340464,3.64851802,186.22,186.05,1.716]
[1734869340663,0.94851802,186.21,186.05,1.716]
[1734869340967,2.6884,186.11,186.05,4.4051]
[1734869341266,2.6884,186.11,186.05,1.716]
[1734869342466,2.6884,186.11,186.06,2.689]
[1734869343071,2.7,186.14,186.05,1.716]
[1734869343261,34.78505462,186.23,186.05,1.716]
[1734869343459,3.64846069,186.22,186.05,1.716]
[1734869343767,2.6877,186.15,186.1,2.6883]
[1734869343965,2.7,186.21,186.1,2.6883]
[1734869344165,0.94833514,186.2,186.1,2.6883]
[1734869344669,2.688,186.13,186.08,2.6887]
[1734869344868,2.7,186.16,186.07,2.7]
[1734869345259,2.688,186.14,186.09,2.6885]
[1734869346463,2.6877,186.15,186.1,2.6884]
[1734869346668,2.7,186.18,186.07,2.7]
[1734869346867,2.7,186.18,186.08,1.6726]
[1734869347068,2.6875,186.17,186.08,1.6726]
[1734869347264,34.69295462,186.23,186.08,1.6726]
[1734869347461,2.7,186.23,186.08,1.6726]
[1734869347667,64.26,186.29,186.08,1.6726]
[1734869347867,2.7,186.28,186.08,1.6726]
[1734869348070,1.7033,186.31,186.08,1.6726]
[1734869348271,2.6861,186.27,186.22,2.6867]
[1734869348463,1.7033,186.31,186.19,2.7]
[1734869348464,2.7,186.31,186.19,2.7]
[1734869348767,0.0924,186.36,186.2,5.018]
[1734869348768,2.7,186.32,186.2,5.018]
[1734869350169,2.6857,186.29,186.23,2.6865]
[1734869350372,2.7,186.32,186.2,5.018]
[1734869350572,2.7,186.34,186.21,2.7]
[1734869350762,2.6857,186.29,186.23,2.6865]
[1734869352271,2.6856,186.3,186.24,2.6863]
[1734869352564,2.7,186.35,186.21,2.7]
[1734869353071,2.6853,186.32,186.27,2.686]
[1734869353571,2.6853,186.32,186.26,2.7]
[1734869355072,2.7,186.35,186.2,5.018]
[1734869355375,2.7,186.35,186.21,2.7]
[1734869355671,2.6858,186.29,186.23,2.6865]
[1734869355865,2.7,186.35,186.21,2.7]
[1734869356063,2.686,186.28,186.22,2.6866]
[1734869357272,2.7,186.35,186.21,2.7]
[1734869357873,2.7,186.35,186.25,2.6862]
[1734869357874,2.6853,186.32,186.25,2.6862]
[1734869358074,2.7,186.35,186.21,2.7]
[1734869358477,1.6292,186.38,186.21,2.7]
[1734869358478,2.6851,186.33,186.21,2.7]
[1734869358869,1.6292,186.38,186.21,18.85]
[1734869359172,1.6292,186.38,186.2,5.018]
[1734869359173,2.7,186.38,186.2,5.018]
[1734869359383,0.94742303,186.37,186.2,7.718]
[1734869359679,0.94742303,186.37,186.22,2.6867]
[1734869360076,2.686,186.28,186.22,2.6867]
[1734869360277,2.7,186.32,186.21,2.7]
[1734869360579,2.6861,186.26,186.21,2.7]
[1734869360877,2.6861,186.26,186.2,10.405]
[1734869361679,2.7,186.31,186.2,7.718]
[1734869361879,2.7,186.34,186.2,7.718]
[1734869362177,2.6856,186.3,186.2,7.718]
[1734869362878,2.7,186.34,186.23,2.6865]
[1734869363278,2.6858,186.29,186.23,2.6865]
[1734869364782,2.6858,186.29,186.2,7.718]
[1734869364977,2.6858,186.29,186.24,2.6864]
[1734869365971,2.6858,186.28,186.23,2.6865]
[1734869366172,2.7,186.34,186.2,7.718]
[1734869366682,2.686,186.27,186.21,5.3068]
[1734869366886,2.686,186.27,186.22,2.62]
[1734869368379,2.7,186.34,186.2,7.705]
[1734869368584,0.94762594,186.33,186.2,7.638]
[1734869369083,2.6864,186.25,186.2,7.638]
[1734869369286,2.6864,186.25,186.2,5.018]
[1734869369486,1.5702,186.33,186.2,3.3758]
[1734869369487,2.62,186.29,186.2,3.3758]
[1734869370586,2.6868,186.21,186.2,3.3758]
[1734869371589,2.6868,186.21,186.15,1.7198]
[1734869371590,2.62,186.23,186.11,59.59189528]
[1734869371782,2.6872,186.19,186.14,2.6878]
[1734869375288,2.6873,186.18,186.14,2.6878]
[1734869375989,2.6873,186.18,186.13,2.62]
[1734869376188,2.6871,186.19,186.15,2.6877]
[1734869377790,2.6874,186.17,186.14,2.6878]
[1734869377989,2.6874,186.17,186.13,2.62]
[1734869378290,2.6874,186.17,186.14,14.5108293]
[1734869379390,2.6874,186.17,186.13,5.3079]
[1734869380085,2.6874,186.17,186.13,19.8187293]
[1734869380386,2.62,186.19,186.13,14.5108293]
[1734869380588,2.62,186.18,186.13,14.5108293]
[1734869380888,2.6878,186.15,186.13,14.5108293]
[1734869381083,2.6878,186.15,186.12,59.59189528]
[1734869381084,2.6878,186.15,186.11,2.6883]
[1734869381285,2.62,186.21,186.09,81.40707846]
[1734869381887,2.62,186.21,186.11,59.59189528]
[1734869382590,2.6874,186.17,186.13,2.688]
[1734869386693,2.6872,186.19,186.11,14.51153122]
[1734869386889,1.7195,186.26,186.11,14.51153122]
[1734869387095,2.62,186.24,186.11,14.51153122]
[1734869387293,2.687,186.2,186.15,2.6876]
[1734869388494,2.62,186.24,186.15,2.6876]
[1734869388495,2.6872,186.19,186.15,2.6876]
[1734869388694,2.62,186.24,186.12,59.59189528]
[1734869388695,2.62,186.24,186.13,2.688]
[1734869389097,2.6869,186.21,186.12,59.59189528]
[1734869389297,2.62,186.24,186.14,2.6878]
[1734869389600,2.62,186.24,186.13,14.49735371]
[1734869389998,2.62,186.24,186.11,17.18555371]
[1734869390301,2.6877,186.16,186.11,17.18555371]
[1734869390694,2.6877,186.16,186.11,2.6882]
[1734869392201,2.62,186.19,186.08,81.37483527]
[1734869392591,2.62,186.19,186.09,14.50607397]
[1734869392792,2.6426573,186.18,186.09,14.50607397]
[1734869393099,2.6877,186.16,186.09,14.50607397]
[1734869393291,1.7877,186.18,186.09,14.50607397]
[1734869393491,0.94791662,186.17,186.09,14.50607397]
[1734869393696,0.94791662,186.17,186.07,89.38784292]
[1734869393697,0.94791662,186.17,186.06,3.2845]
[1734869394100,1.7877,186.18,186.07,5.24989722]
[1734869394302,2.6886,186.1,186.07,5.24989722]
[1734869394501,2.6886,186.1,186.08,5.24989722]
[1734869394800,2.6886,186.1,186.06,3.2845]
[1734869395300,2.6887,186.09,186.07,5.2472083]
[1734869395700,2.6887,186.09,186.06,3.2845]
[1734869395907,2.62,186.12,186.02,14.50212884]
[1734869396107,2.6889,186.08,186.03,2.6895]
[1734869396409,2.6889,186.08,186.04,5.24532435]
[1734869396610,2.6889,186.08,186.05,5.24532435]
[1734869396909,2.56,186.16,186.04,2.56]
[1734869397209,2.56,186.15,186.04,2.56]
[1734869397410,2.6884,186.11,186.05,7.93163622]
[1734869397710,2.56,186.13,186.06,5.24253622]
[1734869397911,2.6882,186.12,186.07,2.6889]
[1734869398209,2.56,186.13,186.04,2.56]
[1734869398405,1.8128,186.21,186.04,2.56]
[1734869398406,2.688,186.14,186.09,2.6886]
[1734869398612,2.56,186.16,186.05,5.24103873]
[1734869398814,2.56,186.16,186.06,5.24103873]
[1734869399208,2.56,186.16,186.07,5.24103873]
[1734869399405,2.6881,186.13,186.08,2.6888]
[1734869399706,2.6881,186.13,186.04,2.56]
[1734869399904,2.6881,186.13,186.07,2.6888]
[1734869400614,2.6881,186.13,186.04,2.56]
[1734869400809,2.6881,186.13,186.07,2.6888]
[1734869401008,2.6881,186.13,186.05,5.24066985]
[1734869401210,2.6879,186.14,186.04,2.56]
[1734869401711,2.6877,186.16,186.05,5.24042362]
[1734869401911,2.56,186.2,186.06,5.24042362]
[1734869402111,2.56,186.2,186.07,1.6331]
[1734869402316,2.6875,186.18,186.13,2.688]
[1734869402512,2.6875,186.18,186.09,3.3133]
[1734869402815,2.6875,186.18,186.12,2.6882]
[1734869403016,2.56,186.2,186.1,5.24057696]
[1734869403217,2.6876,186.17,186.13,5.24057696]
[1734869403414,2.6876,186.17,186.12,2.6882]
[1734869404108,2.6876,186.17,186.13,5.24258111]
[1734869404305,2.56,186.2,186.11,2.6883]
[1734869404914,2.56,186.2,186.09,3.3133]
[1734869405105,2.56,186.2,186.12,2.6881]
[1734869405612,2.56,186.2,186.13,2.688]
[1734869405812,2.56,186.2,186.13,7.93152828]
[1734869406115,2.56,186.2,186.13,2.688]
[1734869406519,2.6875,186.18,186.13,2.688]
[1734869407321,2.56,186.2,186.09,3.3133]
[1734869407515,2.56,186.22,186.15,2.6877]
[1734869407714,2.56,186.22,186.12,2.56]
[1734869408115,2.6875,186.18,186.13,7.93359716]
[1734869408319,2.6875,186.18,186.13,2.688]
[1734869408619,2.6875,186.18,186.12,2.56]
[1734869408820,2.56,186.18,186.09,62.90519528]
[1734869409115,2.56,186.18,186.1,5.24797354]
[1734869409319,2.6877,186.16,186.1,5.24797354]
[1734869409521,2.56,186.18,186.11,5.24797354]
[1734869409820,2.56,186.18,186.09,62.90519528]
[1734869410017,2.6878,186.15,186.1,2.6884]
[1734869410212,2.6878,186.15,186.1,7.93816262]
[1734869410412,2.6878,186.15,186.11,5.24976262]